fUSD/lending_fUSD_20260605
["ID","MTS","AMOUNT","RATE_DAILY","PERIOD"]
[424196682,1780645841000,-983.012832,0.000107,2]
[424196674,1780645841000,-151.0,0.000107,2]
[424196670,1780645841000,-500.0,0.000107,2]
[424196675,1780645841000,-983.012832,0.000107,2]
[424196677,1780645841000,-983.012832,0.000107,2]
[424196676,1780645841000,-983.012832,0.000107,2]
[424196678,1780645841000,-983.012832,0.000107,2]
[424196680,1780645841000,-983.012832,0.000107,2]
[424196683,1780645841000,-293.65744354,0.00010709,2]
[424196685,1780645841000,-500.0,0.00010795,2]
[424196684,1780645841000,-1293.34,0.00010779,2]
[424196686,1780645841000,-255.0,0.00010814,2]
[424196688,1780645841000,-2351.0,0.00010937,2]
[424196687,1780645841000,-5008.15079619,0.000109,2]
[424196664,1780645841000,-500.0,0.000107,2]
[424196673,1780645841000,-151.0,0.000107,2]
[424196655,1780645841000,-500.0,0.000107,2]
[424196638,1780645841000,-500.0,0.000107,2]
[424196658,1780645841000,-500.0,0.000107,2]
[424196626,1780645841000,-500.0,0.000107,2]
[424196628,1780645841000,-500.0,0.000107,2]
[424196627,1780645841000,-500.0,0.000107,2]
[424196629,1780645841000,-500.0,0.000107,2]
[424196631,1780645841000,-500.0,0.000107,2]
[424196630,1780645841000,-500.0,0.000107,2]
[424196637,1780645841000,-500.0,0.000107,2]
[424196636,1780645841000,-500.0,0.000107,2]
[424196639,1780645841000,-500.0,0.000107,2]
[424196633,1780645841000,-500.0,0.000107,2]
[424196632,1780645841000,-500.0,0.000107,2]
[424196634,1780645841000,-500.0,0.000107,2]
[424196635,1780645841000,-500.0,0.000107,2]
[424196640,1780645841000,-500.0,0.000107,2]
[424196650,1780645841000,-500.0,0.000107,2]
[424196651,1780645841000,-500.0,0.000107,2]
[424196652,1780645841000,-500.0,0.000107,2]
[424196653,1780645841000,-500.0,0.000107,2]
[424196643,1780645841000,-500.0,0.000107,2]
[424196641,1780645841000,-500.0,0.000107,2]
[424196647,1780645841000,-500.0,0.000107,2]
[424196642,1780645841000,-500.0,0.000107,2]
[424196646,1780645841000,-500.0,0.000107,2]
[424196645,1780645841000,-500.0,0.000107,2]
[424196648,1780645841000,-500.0,0.000107,2]
[424196644,1780645841000,-500.0,0.000107,2]
[424196649,1780645841000,-500.0,0.000107,2]
[424196654,1780645841000,-500.0,0.000107,2]
[424196656,1780645841000,-500.0,0.000107,2]
[424196657,1780645841000,-500.0,0.000107,2]
[424196693,1780645841000,-150.0,0.00010959,2]
[424196722,1780645841000,-488.18,0.00011281,2]
[424196692,1780645841000,-200.0,0.00010959,2]
[424196724,1780645841000,-150.99,0.00011281,2]
[424196726,1780645841000,-1530.3,0.00011281,2]
[424196728,1780645841000,-6095.32723968,0.00011302,2]
[424196723,1780645841000,-19816.59,0.00011281,2]
[424196731,1780645841000,-2000.0,0.00011501,2]
[424196727,1780645841000,-667.66,0.00011281,2]
[424196730,1780645841000,-166.66,0.00011346,2]
[424196729,1780645841000,-160.0,0.00011324,2]
[424196735,1780645841000,-1548.0,0.00011814,2]
[424196738,1780645841000,-152.0,0.00011814,2]
[424196737,1780645841000,-152.0,0.00011814,2]
[424196739,1780645841000,-152.0,0.00011814,2]
[424196740,1780645841000,-152.0,0.00011814,2]
[424196744,1780645841000,-151.0,0.00011825,2]
[424196743,1780645841000,-6095.32723968,0.00011816,2]
[424196741,1780645841000,-151.0,0.00011814,2]
[424196745,1780645841000,-180.80928768,0.00011853,2]
[424196742,1780645841000,-151.0,0.00011814,2]
[424196736,1780645841000,-1548.0,0.00011814,2]
[424196747,1780645841000,-433.0,0.00011896,2]
[424196746,1780645841000,-169.267765,0.00011892,2]
[424196755,1780645841000,-151.0,0.00012087,2]
[424196752,1780645841000,-3292.0,0.00012031,2]
[424196748,1780645841000,-44918.8431019,0.00011903,2]
[424196754,1780645841000,-151.0,0.00012084,2]
[424196750,1780645841000,-151.0,0.00011907,2]
[424196749,1780645841000,-151.0,0.00011907,2]
[424196751,1780645841000,-166.67,0.00012015,2]
[424196753,1780645841000,-1696.8,0.00012055,2]
[424196734,1780645841000,-1548.0,0.00011814,2]
[424196725,1780645841000,-9999.99,0.00011281,2]
[424196690,1780645841000,-200.0,0.00010959,2]
[424196732,1780645841000,-351.74819876,0.00011699,2]
[424196721,1780645841000,-13434.42,0.00011281,2]
[424196681,1780645841000,-983.012832,0.000107,2]
[424196695,1780645841000,-151.0,0.00010959,2]
[424196705,1780645841000,-6095.32723968,0.00011099,2]
[424196707,1780645841000,-150.0,0.00011233,2]
[424196706,1780645841000,-166.67,0.00011099,2]
[424196699,1780645841000,-151.0,0.00010959,2]
[424196702,1780645841000,-1293.34,0.0001103,2]
[424196694,1780645841000,-150.0,0.00010959,2]
[424196703,1780645841000,-180.80928768,0.00011091,2]
[424196698,1780645841000,-151.0,0.00010959,2]
[424196697,1780645841000,-151.0,0.00010959,2]
[424196704,1780645841000,-6095.32723968,0.00011099,2]
[424196700,1780645841000,-157.975636,0.00010959,2]
[424196696,1780645841000,-151.0,0.00010959,2]
[424196691,1780645841000,-200.0,0.00010959,2]
[424196708,1780645841000,-151.0,0.00011281,2]
[424196701,1780645841000,-2244.72968379,0.00011,2]
[424196733,1780645841000,-1548.0,0.00011814,2]
[424196715,1780645841000,-983.012832,0.00011281,2]
[424196716,1780645841000,-151.0,0.00011281,2]
[424196714,1780645841000,-983.012832,0.00011281,2]
[424196717,1780645841000,-151.0,0.00011281,2]
[424196720,1780645841000,-19494.96,0.00011281,2]
[424196709,1780645841000,-151.0,0.00011281,2]
[424196718,1780645841000,-7224.23,0.00011281,2]
[424196713,1780645841000,-983.012832,0.00011281,2]
[424196712,1780645841000,-983.012832,0.00011281,2]
[424196711,1780645841000,-151.0,0.00011281,2]
[424196719,1780645841000,-299.99,0.00011281,2]
[424196710,1780645841000,-191.233345,0.00011281,2]
[424196793,1780645842000,-151.0,0.000132,2]
[424196796,1780645842000,-826.0,0.00013342,2]
[424196791,1780645842000,-250.0,0.00013197,2]
[424196792,1780645842000,-94925.78159982,0.000132,2]
[424196786,1780645842000,-275.13,0.00013,2]
[424196787,1780645842000,-372.58578916,0.00013018,2]
[424196798,1780645842000,-180.80928768,0.00013376,2]
[424196789,1780645842000,-430.097576,0.00013178,2]
[424196790,1780645842000,-151.0,0.00013197,2]
[424196797,1780645842000,-6095.32723968,0.00013358,2]
[424196788,1780645842000,-736.0,0.00013085,2]
[424196795,1780645842000,-4609.0,0.00013234,2]
[424196794,1780645842000,-151.0,0.000132,2]
[424196803,1780645842000,-169.62,0.00013471,2]
[424196799,1780645842000,-44918.8431019,0.00013447,2]
[424196801,1780645842000,-151.0,0.00013447,2]
[424196808,1780645842000,-983.012832,0.00013471,2]
[424196804,1780645842000,-169.62,0.00013471,2]
[424196809,1780645842000,-983.012832,0.00013471,2]
[424196807,1780645842000,-983.012832,0.00013471,2]
[424196802,1780645842000,-169.62,0.00013471,2]
[424196806,1780645842000,-983.012832,0.00013471,2]
[424196805,1780645842000,-180.808887,0.00013471,2]
[424196814,1780645842000,-150.0,0.00013488,2]
[424196813,1780645842000,-151.0,0.00013471,2]
[424196785,1780645842000,-151.0,0.00012936,2]
[424196810,1780645842000,-151.0,0.00013471,2]
[424196780,1780645842000,-983.012832,0.00012936,2]
[424196762,1780645842000,-426.32474976,0.00012329,2]
[424196782,1780645842000,-983.012832,0.00012936,2]
[424196757,1780645842000,-621.80774443,0.00012277,2]
[424196756,1780645842000,-165.63,0.00012199,2]
[424196758,1780645842000,-919.31,0.00012329,2]
[424196759,1780645842000,-150.52165906,0.00012329,2]
[424196760,1780645842000,-186.18115721,0.00012329,2]
[424196771,1780645842000,-275.112495,0.00012587,2]
[424196768,1780645842000,-186.18115721,0.00012329,2]
[424196765,1780645842000,-426.32474976,0.00012329,2]
[424196761,1780645842000,-426.32474976,0.00012329,2]
[424196767,1780645842000,-150.52165905,0.00012329,2]
[424196766,1780645842000,-186.18115721,0.00012329,2]
[424196769,1780645842000,-6095.32723968,0.0001233,2]
[424196778,1780645842000,-166.67,0.00012931,2]
[424196815,1780645842000,-150.0,0.00013488,2]
[424196764,1780645842000,-426.32474976,0.00012329,2]
[424196763,1780645842000,-426.32474976,0.00012329,2]
[424196773,1780645842000,-250.0319068,0.00012615,2]
[424196777,1780645842000,-1300.0,0.000129,4]
[424196775,1780645842000,-3846.86,0.00012707,2]
[424196776,1780645842000,-6095.32723968,0.00012844,2]
[424196774,1780645842000,-2000.0,0.00012651,2]
[424196781,1780645842000,-983.012832,0.00012936,2]
[424196772,1780645842000,-180.80928768,0.00012615,2]
[424196779,1780645842000,-151.0,0.00012936,2]
[424196783,1780645842000,-983.012832,0.00012936,2]
[424196784,1780645842000,-151.0,0.00012936,2]
[424196770,1780645842000,-311.78240267,0.000125,2]
[424196816,1780645842000,-150.0,0.00013488,2]
[424196800,1780645842000,-151.0,0.00013447,2]
[424196817,1780645842000,-150.0,0.00013488,2]
[424196851,1780645842000,-4133.42,0.00013608,2]
[424196850,1780645842000,-150.0,0.00013608,2]
[424196852,1780645842000,-536.72,0.00013608,2]
[424196853,1780645842000,-203.55691112,0.00013609,2]
[424196854,1780645842000,-150.0,0.00013618,2]
[424196856,1780645842000,-203.55691112,0.00013624,2]
[424196866,1780645842000,-150.0,0.00013683,2]
[424196864,1780645842000,-150.0,0.00013668,2]
[424196865,1780645842000,-203.55691112,0.00013669,2]
[424196855,1780645842000,-150.0,0.00013622,2]
[424196859,1780645842000,-150.0,0.00013643,2]
[424196867,1780645842000,-203.55691112,0.00013684,2]
[424196858,1780645842000,-150.0,0.0001364,2]
[424196860,1780645842000,-150.0,0.00013645,2]
[424196862,1780645842000,-150.0,0.00013661,2]
[424196861,1780645842000,-203.55691112,0.00013654,2]
[424196863,1780645842000,-150.0,0.00013668,2]
[424196868,1780645842000,-150.0,0.00013687,2]
[424196870,1780645842000,-167.63194436,0.00013696,2]
[424196869,1780645842000,-150.0,0.00013694,2]
[424196871,1780645842000,-500.0,0.00013698,2]
[424196875,1780645842000,-500.0,0.00013698,2]
[424196873,1780645842000,-500.0,0.00013698,2]
[424196874,1780645842000,-500.0,0.00013698,2]
[424196872,1780645842000,-500.0,0.00013698,2]
[424196876,1780645842000,-500.0,0.00013698,2]
[424196818,1780645842000,-150.0,0.00013488,2]
[424196848,1780645842000,-286.777986,0.00013605,2]
[424196846,1780645842000,-3050.766,0.00013597,2]
[424196857,1780645842000,-203.55691112,0.00013639,2]
[424196845,1780645842000,-150.0,0.00013596,2]
[424196849,1780645842000,-150.0,0.00013608,2]
[424196822,1780645842000,-150.0,0.00013488,2]
[424196823,1780645842000,-150.0,0.00013488,2]
[424196825,1780645842000,-203.7220427,0.00013488,2]
[424196821,1780645842000,-150.0,0.00013488,2]
[424196829,1780645842000,-150.0,0.00013509,2]
[424196828,1780645842000,-203.55691112,0.00013503,2]
[424196824,1780645842000,-150.0,0.00013488,2]
[424196827,1780645842000,-203.55691112,0.00013488,2]
[424196826,1780645842000,-150.0,0.00013488,2]
[424196830,1780645842000,-203.55691112,0.00013518,2]
[424196820,1780645842000,-150.0,0.00013488,2]
[424196831,1780645842000,-150.0,0.00013531,2]
[424196833,1780645842000,-150.0,0.00013539,2]
[424196819,1780645842000,-150.0,0.00013488,2]
[424196834,1780645842000,-150.0,0.00013548,2]
[424196844,1780645842000,-203.55691112,0.00013594,2]
[424196841,1780645842000,-203.55691112,0.00013578,2]
[424196842,1780645842000,-150.0,0.00013588,2]
[424196843,1780645842000,-150.0,0.00013591,2]
[424196839,1780645842000,-150.0,0.00013567,2]
[424196832,1780645842000,-203.55691112,0.00013533,2]
[424196847,1780645842000,-211.32,0.00013597,2]
[424196836,1780645842000,-203.55691112,0.00013548,2]
[424196835,1780645842000,-150.0,0.00013548,2]
[424196837,1780645842000,-150.0,0.00013553,2]
[424196838,1780645842000,-203.55691112,0.00013563,2]
[424196840,1780645842000,-150.0,0.00013575,2]
[424196920,1780645843000,-500.0,0.00013698,2]
[424196922,1780645843000,-500.0,0.00013698,2]
[424196921,1780645843000,-500.0,0.00013698,2]
[424196917,1780645843000,-500.0,0.00013698,2]
[424196909,1780645843000,-500.0,0.00013698,2]
[424196908,1780645843000,-500.0,0.00013698,2]
[424196907,1780645843000,-500.0,0.00013698,2]
[424196904,1780645843000,-500.0,0.00013698,2]
[424196905,1780645843000,-500.0,0.00013698,2]
[424196906,1780645843000,-280.74773357,0.00013698,2]
[424196925,1780645843000,-500.0,0.00013698,2]
[424196916,1780645843000,-500.0,0.00013698,2]
[424196910,1780645843000,-500.0,0.00013698,2]
[424196919,1780645843000,-500.0,0.00013698,2]
[424196928,1780645843000,-500.0,0.00013698,2]
[424196924,1780645843000,-500.0,0.00013698,2]
[424196923,1780645843000,-500.0,0.00013698,2]
[424196927,1780645843000,-538.25220633,0.00013698,2]
[424196926,1780645843000,-500.0,0.00013698,2]
[424196933,1780645843000,-300.0,0.00013698,2]
[424196929,1780645843000,-500.0,0.00013698,2]
[424196930,1780645843000,-500.0,0.00013698,2]
[424196932,1780645843000,-500.0,0.00013698,2]
[424196943,1780645843000,-500.0,0.00013698,2]
[424196934,1780645843000,-241.38210982,0.00013698,2]
[424196931,1780645843000,-500.0,0.00013698,2]
[424196942,1780645843000,-500.0,0.00013698,2]
[424196915,1780645843000,-500.0,0.00013698,2]
[424196918,1780645843000,-540.02127567,0.00013698,2]
[424196914,1780645843000,-500.0,0.00013698,2]
[424196878,1780645843000,-500.0,0.00013698,2]
[424196913,1780645843000,-500.0,0.00013698,2]
[424196935,1780645843000,-500.0,0.00013698,2]
[424196877,1780645843000,-500.0,0.00013698,2]
[424196879,1780645843000,-500.0,0.00013698,2]
[424196881,1780645843000,-500.0,0.00013698,2]
[424196882,1780645843000,-500.0,0.00013698,2]
[424196891,1780645843000,-500.0,0.00013698,2]
[424196889,1780645843000,-500.0,0.00013698,2]
[424196883,1780645843000,-500.0,0.00013698,2]
[424196880,1780645843000,-500.0,0.00013698,2]
[424196890,1780645843000,-500.0,0.00013698,2]
[424196887,1780645843000,-212.1318407,0.00013698,2]
[424196885,1780645843000,-500.0,0.00013698,2]
[424196886,1780645843000,-500.0,0.00013698,2]
[424196911,1780645843000,-500.0,0.00013698,2]
[424196884,1780645843000,-500.0,0.00013698,2]
[424196897,1780645843000,-500.0,0.00013698,2]
[424196893,1780645843000,-500.0,0.00013698,2]
[424196892,1780645843000,-500.0,0.00013698,2]
[424196894,1780645843000,-336.96748853,0.00013698,2]
[424196896,1780645843000,-500.0,0.00013698,2]
[424196895,1780645843000,-500.0,0.00013698,2]
[424196900,1780645843000,-500.0,0.00013698,2]
[424196902,1780645843000,-500.0,0.00013698,2]
[424196899,1780645843000,-500.0,0.00013698,2]
[424196898,1780645843000,-500.0,0.00013698,2]
[424196901,1780645843000,-500.0,0.00013698,2]
[424196903,1780645843000,-500.0,0.00013698,2]
[424196912,1780645843000,-500.0,0.00013698,2]
[424196888,1780645843000,-500.0,0.00013698,2]
[424196941,1780645843000,-500.0,0.00013698,2]
[424197001,1780645843000,-500.0,0.00013698,2]
[424196939,1780645843000,-500.0,0.00013698,2]
[424196989,1780645843000,-500.0,0.00013698,2]
[424196987,1780645843000,-500.0,0.00013698,2]
[424196979,1780645843000,-500.0,0.00013698,2]
[424196976,1780645843000,-500.0,0.00013698,2]
[424196981,1780645843000,-500.0,0.00013698,2]
[424196985,1780645843000,-500.0,0.00013698,2]
[424196991,1780645843000,-500.0,0.00013698,2]
[424196983,1780645843000,-500.0,0.00013698,2]
[424197005,1780645843000,-200.0,0.00013699,2]
[424197007,1780645843000,-166.66,0.00013699,2]
[424196994,1780645843000,-500.0,0.00013698,2]
[424196995,1780645843000,-500.0,0.00013698,2]
[424197011,1780645843000,-151.0,0.00013699,2]
[424196975,1780645843000,-500.0,0.00013698,2]
[424196997,1780645843000,-500.0,0.00013698,2]
[424197013,1780645843000,-151.0,0.00013699,2]
[424197016,1780645843000,-2090.70101116,0.00013699,2]
[424197003,1780645843000,-249.3098753,0.00013698,2]
[424197014,1780645843000,-162.178092,0.00013699,2]
[424196999,1780645843000,-500.0,0.00013698,2]
[424197018,1780645843000,-2090.70101116,0.00013699,2]
[424196940,1780645843000,-500.0,0.00013698,2]
[424197024,1780645843000,-2090.70101116,0.00013699,2]
[424197025,1780645843000,-2090.70101116,0.00013699,2]
[424197028,1780645843000,-2090.70101116,0.00013699,2]
[424197022,1780645843000,-2090.70101116,0.00013699,2]
[424197030,1780645843000,-2090.70101116,0.00013699,2]
[424197031,1780645843000,-2090.70101116,0.00013699,2]
[424197009,1780645843000,-151.0,0.00013699,2]
[424196969,1780645843000,-500.0,0.00013698,2]
[424197020,1780645843000,-2090.70101116,0.00013699,2]
[424196973,1780645843000,-500.0,0.00013698,2]
[424196938,1780645843000,-500.0,0.00013698,2]
[424196971,1780645843000,-500.0,0.00013698,2]
[424196937,1780645843000,-500.0,0.00013698,2]
[424196936,1780645843000,-500.0,0.00013698,2]
[424196944,1780645843000,-500.0,0.00013698,2]
[424196948,1780645843000,-500.0,0.00013698,2]
[424196947,1780645843000,-500.0,0.00013698,2]
[424196951,1780645843000,-500.0,0.00013698,2]
[424196952,1780645843000,-500.0,0.00013698,2]
[424196945,1780645843000,-500.0,0.00013698,2]
[424196950,1780645843000,-500.0,0.00013698,2]
[424196955,1780645843000,-500.0,0.00013698,2]
[424196949,1780645843000,-500.0,0.00013698,2]
[424196953,1780645843000,-500.0,0.00013698,2]
[424196946,1780645843000,-500.0,0.00013698,2]
[424196957,1780645843000,-386.82400011,0.00013698,2]
[424196965,1780645843000,-500.0,0.00013698,2]
[424196954,1780645843000,-500.0,0.00013698,2]
[424196963,1780645843000,-500.0,0.00013698,2]
[424196961,1780645843000,-500.0,0.00013698,2]
[424196959,1780645843000,-550.90519724,0.00013698,2]
[424196956,1780645843000,-500.0,0.00013698,2]
[424196966,1780645843000,-500.0,0.00013698,2]
[424196958,1780645843000,-500.0,0.00013698,2]
[424196960,1780645843000,-500.0,0.00013698,2]
[424196968,1780645843000,-500.0,0.00013698,2]
[424196967,1780645843000,-500.0,0.00013698,2]
[424196962,1780645843000,-176.18769994,0.00013698,2]
[424196964,1780645843000,-500.0,0.00013698,2]
[424197098,1780645844000,-1735.72749378,0.00013699,2]
[424197117,1780645844000,-1735.72749378,0.00013699,2]
[424197094,1780645844000,-1735.72749378,0.00013699,2]
[424197103,1780645844000,-1735.72749378,0.00013699,2]
[424197115,1780645844000,-1735.72749378,0.00013699,2]
[424197107,1780645844000,-1735.72749378,0.00013699,2]
[424197111,1780645844000,-1735.72749378,0.00013699,2]
[424197121,1780645844000,-1735.72749378,0.00013699,2]
[424197109,1780645844000,-1735.72749378,0.00013699,2]
[424197091,1780645844000,-1735.72749378,0.00013699,2]
[424197140,1780645844000,-1735.72749378,0.00013699,2]
[424197119,1780645844000,-1735.72749378,0.00013699,2]
[424197113,1780645844000,-1735.72749378,0.00013699,2]
[424197126,1780645844000,-1735.72749378,0.00013699,2]
[424197127,1780645844000,-1735.72749378,0.00013699,2]
[424197142,1780645844000,-1735.72749378,0.00013699,2]
[424197144,1780645844000,-1735.72749378,0.00013699,2]
[424197146,1780645844000,-2704.6929983,0.00013699,2]
[424197148,1780645844000,-2704.6929983,0.00013699,2]
[424197132,1780645844000,-1735.72749378,0.00013699,2]
[424197084,1780645844000,-1735.72749378,0.00013699,2]
[424197134,1780645844000,-1735.72749378,0.00013699,2]
[424197123,1780645844000,-1735.72749378,0.00013699,2]
[424197075,1780645844000,-1735.72749378,0.00013699,2]
[424197062,1780645844000,-1735.72749378,0.00013699,2]
[424197087,1780645844000,-1735.72749378,0.00013699,2]
[424197138,1780645844000,-1735.72749378,0.00013699,2]
[424197033,1780645844000,-2090.70101116,0.00013699,2]
[424197038,1780645844000,-1735.72749378,0.00013699,2]
[424197036,1780645844000,-1735.72749378,0.00013699,2]
[424197044,1780645844000,-1735.72749378,0.00013699,2]
[424197040,1780645844000,-1735.72749378,0.00013699,2]
[424197042,1780645844000,-1735.72749378,0.00013699,2]
[424197056,1780645844000,-1735.72749378,0.00013699,2]
[424197048,1780645844000,-1735.72749378,0.00013699,2]
[424197050,1780645844000,-1735.72749378,0.00013699,2]
[424197077,1780645844000,-1735.72749378,0.00013699,2]
[424197052,1780645844000,-1735.72749378,0.00013699,2]
[424197046,1780645844000,-1735.72749378,0.00013699,2]
[424197064,1780645844000,-1735.72749378,0.00013699,2]
[424197058,1780645844000,-1735.72749378,0.00013699,2]
[424197068,1780645844000,-1735.72749378,0.00013699,2]
[424197066,1780645844000,-1735.72749378,0.00013699,2]
[424197072,1780645844000,-1735.72749378,0.00013699,2]
[424197070,1780645844000,-1735.72749378,0.00013699,2]
[424197074,1780645844000,-1735.72749378,0.00013699,2]
[424197079,1780645844000,-1735.72749378,0.00013699,2]
[424197081,1780645844000,-1735.72749378,0.00013699,2]
[424197060,1780645844000,-1735.72749378,0.00013699,2]
[424197129,1780645844000,-1735.72749378,0.00013699,2]
[424197054,1780645844000,-1735.72749378,0.00013699,2]
[424197152,1780645844000,-2704.6929983,0.00013699,2]
[424197187,1780645844000,-150.0,0.00013705,2]
[424197190,1780645844000,-150.0,0.00013724,2]
[424197192,1780645844000,-150.0,0.00013727,2]
[424197191,1780645844000,-150.0,0.00013727,2]
[424197196,1780645844000,-150.0,0.00013746,2]
[424197193,1780645844000,-150.0,0.00013727,2]
[424197197,1780645844000,-150.0,0.00013748,2]
[424197198,1780645844000,-4409.1628064,0.00013752,2]
[424197194,1780645844000,-203.55691112,0.0001373,2]
[424197195,1780645844000,-203.55691112,0.00013745,2]
[424197199,1780645844000,-203.55691112,0.0001376,2]
[424197201,1780645844000,-203.55691112,0.00013775,2]
[424197204,1780645844000,-150.0,0.00013787,2]
[424197202,1780645844000,-150.0,0.00013787,2]
[424197203,1780645844000,-150.0,0.00013787,2]
[424197200,1780645844000,-150.0,0.0001377,2]
[424197205,1780645844000,-150.0,0.00013787,2]
[424197209,1780645844000,-2000.0,0.00013801,2]
[424197207,1780645844000,-150.0,0.00013792,2]
[424197208,1780645844000,-150.0,0.00013798,2]
[424197210,1780645844000,-150.0,0.00013803,2]
[424197206,1780645844000,-203.55691112,0.0001379,2]
[424197136,1780645844000,-1735.72749378,0.00013699,2]
[424197184,1780645844000,-2704.69299832,0.00013699,2]
[424197186,1780645844000,-957.79,0.000137,2]
[424197101,1780645844000,-1735.72749378,0.00013699,2]
[424197183,1780645844000,-2704.6929983,0.00013699,2]
[424197150,1780645844000,-2704.6929983,0.00013699,2]
[424197156,1780645844000,-2704.6929983,0.00013699,2]
[424197154,1780645844000,-2704.6929983,0.00013699,2]
[424197160,1780645844000,-2704.6929983,0.00013699,2]
[424197168,1780645844000,-2704.6929983,0.00013699,2]
[424197170,1780645844000,-2704.6929983,0.00013699,2]
[424197162,1780645844000,-2704.6929983,0.00013699,2]
[424197174,1780645844000,-2704.6929983,0.00013699,2]
[424197172,1780645844000,-2704.6929983,0.00013699,2]
[424197173,1780645844000,-2704.6929983,0.00013699,2]
[424197176,1780645844000,-2704.6929983,0.00013699,2]
[424197158,1780645844000,-2704.6929983,0.00013699,2]
[424197166,1780645844000,-2704.6929983,0.00013699,2]
[424197164,1780645844000,-2704.6929983,0.00013699,2]
[424197181,1780645844000,-2704.6929983,0.00013699,2]
[424197180,1780645844000,-2704.6929983,0.00013699,2]
[424197182,1780645844000,-2704.6929983,0.00013699,2]
[424197185,1780645844000,-203.55691112,0.000137,2]
[424197178,1780645844000,-2704.6929983,0.00013699,2]
[424197188,1780645844000,-203.55691112,0.00013715,2]
[424197189,1780645844000,-165.63,0.00013724,2]
[424197179,1780645844000,-2704.6929983,0.00013699,2]
[424197177,1780645844000,-2704.6929983,0.00013699,2]
[424197175,1780645844000,-2704.6929983,0.00013699,2]
[424197253,1780645845000,-9025.37470176,0.00014,2]
[424197247,1780645845000,-203.55691112,0.00013972,2]
[424197255,1780645845000,-203.55691112,0.00014002,2]
[424197248,1780645845000,-166.66,0.00013973,2]
[424197251,1780645845000,-150.0,0.00013987,2]
[424197250,1780645845000,-150.0,0.00013987,2]
[424197240,1780645845000,-562.95163394,0.00013958,2]
[424197257,1780645845000,-150.0,0.00014009,2]
[424197245,1780645845000,-150.0,0.00013967,2]
[424197256,1780645845000,-150.0,0.00014004,2]
[424197246,1780645845000,-150.0,0.00013967,2]
[424197252,1780645845000,-203.55691112,0.00013987,2]
[424197258,1780645845000,-203.55691112,0.00014017,2]
[424197254,1780645845000,-250.0,0.00014,2]
[424197270,1780645845000,-203.55691112,0.00014078,2]
[424197261,1780645845000,-150.0,0.00014031,2]
[424197262,1780645845000,-203.55691112,0.00014033,2]
[424197263,1780645845000,-150.0,0.0001404,2]
[424197260,1780645845000,-150.0,0.00014027,2]
[424197259,1780645845000,-150.0,0.00014027,2]
[424197267,1780645845000,-150.0,0.00014056,2]
[424197268,1780645845000,-203.55691112,0.00014063,2]
[424197269,1780645845000,-150.0,0.00014074,2]
[424197266,1780645845000,-150.0,0.00014052,2]
[424197271,1780645845000,-1030.0,0.00014087,2]
[424197272,1780645845000,-1500.0,0.00014087,2]
[424197236,1780645845000,-203.55691112,0.00013942,2]
[424197274,1780645845000,-150.0,0.00014087,2]
[424197277,1780645845000,-203.55691112,0.00014093,2]
[424197249,1780645845000,-150.0,0.00013987,2]
[424197237,1780645845000,-150.0,0.00013944,2]
[424197222,1780645845000,-203.55691112,0.00013866,2]
[424197238,1780645845000,-150.0,0.00013953,2]
[424197211,1780645845000,-203.55691112,0.00013806,2]
[424197213,1780645845000,-203.55691112,0.00013821,2]
[424197217,1780645845000,-150.0,0.00013847,2]
[424197215,1780645845000,-166.66,0.00013836,2]